Cogmind - Beta 15 @@@ ROGUE MODE // 2025.05.15 @ 23:44:53 Player: 0_0 Result: Destroyed by 86-UBQ(j) with Overtuned Pulse Rifle Performance ------------- Evolutions (0) 0 Regions Visited (4) 800 Robots Destroyed (25) 125 Value Destroyed (625) 625 Prototype IDs (7) 140 Alien Tech Used (0) 0 Bonus (800) 800 TOTAL SCORE: 2490 Bonus ------- Registered with UFD 300 Met Optimus in HQ 500 Cogmind --------- Core Integrity 0/250 Matter 300/300 Energy 240/240 System Corruption 0% Temperature Warm (138) Movement Treading (157) Location -8/Scraptown Parts ------- > --- POWER (1) -------- Nuclear Core > --- PROPULSION (2) --- Armored Treads Advanced Treads > --- UTILITY (2) ------ Small Storage Unit Tractor Beam > --- WEAPON (2) ------- Minigun > --- INVENTORY (8) ---- Deuterium Engine Improved Terrain Scan Processor 0b10 Decoder Chip [Generic] Hacking Suite Authchip [R/Combat] Heavy Particle Cannon Barrage Gun CPS Tube (2) Peak State ------------ > --- POWER ------------ Nuclear Core > --- PROPULSION ------- Armored Treads Advanced Treads > --- UTILITY ---------- Small Storage Unit Tractor Beam > --- WEAPON ----------- Minigun Minigun > --- INVENTORY -------- Deuterium Engine Hacking Suite Authchip [R/Combat] Subdweller Beam Cannon Heavy Particle Cannon Barrage Gun Subdweller Shrapnel Launcher CPS Tube [Rating: 19] Favorites ----------- Power Light Ion Engine Engine Light Ion Engine Power Core Nuclear Core Propulsion Light Treads Treads Light Treads Wheel Compact Wheel Utility Small Storage Unit Device Tractor Beam Storage Small Storage Unit Weapon Minigun Energy Gun Riot Gun Ballistic Gun Minigun Ballistic Cannon Slug Cannon Launcher Grenade Launcher Build | -11 -10 -10 -8 -8 ------- Run | Yrd Mat Sub Rec Scr Slots Evolved . | . . . . . Power . | . . . . . Propulsion . | . . . . . Utility . | . . . . . Weapon . | . . . . . Parts Attached 25 | 6 2 10 3 4 Power 4 | 1 . 2 . 1 Engine 3 | 1 . 2 . . Core 1 | . . . . 1 Reactor . | . . . . . Propulsion 7 | 2 . 2 1 2 Treads 3 | . . . 1 2 Leg . | . . . . . Wheel 4 | 2 . 2 . . Hover . | . . . . . Flight . | . . . . . Utility 5 | 1 1 2 1 . Device 4 | . 1 2 1 . Storage 1 | 1 . . . . Processor . | . . . . . Hackware . | . . . . . Protection . | . . . . . Artifact . | . . . . . Weapon 9 | 2 1 4 1 1 Energy Gun 3 | 2 . 1 . . Energy Cannon . | . . . . . Ballistic Gun 2 | . . . 1 1 Ballistic Cannon 1 | . . 1 . . Launcher 3 | . 1 2 . . Special Weapon . | . . . . . Impact Weapon . | . . . . . Slashing Weapon . | . . . . . Piercing Weapon . | . . . . . Special Melee Weapon . | . . . . . Unidentified Prototypes . | . . . . . Parts Lost 12 | . . 8 3 1 Power 2 | . . 2 . . Propulsion 4 | . . 3 1 . Utility 1 | . . 1 . . Weapon 5 | . . 2 2 1 Highest Loss Streak 5 | . . 5 3 1 To Critical Strikes . | . . . . . Average Backups 6 | . 3 6 5 6 Power . | . 1 . . . Propulsion . | . . . . . Utility 1 | . . 1 1 1 Weapon 3 | . 2 4 4 3 Tool/Special . | . . . . . Unused Backups 11 | . . . . 11 Power 1 | . . . . 1 Propulsion . | . . . . . Utility 5 | . . . . 5 Weapon 4 | . . . . 4 Tool/Special 1 | . . . . 1 Average Slot Usage (%) 93 | . 90 97 79 93 Engine 12 | . 14 13 14 10 Core 1 | . . . . 3 Treads 13 | . . . 9 21 Wheel 9 | . 28 26 2 . Device 13 | . 5 13 13 14 Storage 14 | . 14 14 14 14 Energy Gun 4 | . 17 11 . . Ballistic Gun 14 | . . . 8 24 Launcher 8 | . 11 13 16 3 Peak Build Rating 19 | 6 7 13 11 19 Average Rating 11 | 4 6 10 8 13 On Entrance 5 | . 6 7 7 9 Naked Turns . | . . . . . Heaviest Build 22 | 14 17 22 21 20 Greatest Support 42 | 26 26 36 20 42 Greatest Overweight (x) 5 | . . 1 5 . Average Overweight (x) . | . . . . . Largest Inventory Capacity 8 | 8 8 8 8 8 Average Capacity 7 | 6 8 8 8 8 Most Carried 8 | 2 6 8 7 8 Average Carried 6 | 1 4 6 5 6 Final Capacity 8 | 8 8 8 8 8 Final Carried 8 | 2 6 6 5 8 Class Distribution -------------------- 100% | Mutant Dominant Class ---------------- Mutant | -10/Materials Mutant | -10/Subcaves Mutant | -8/Recycling Mutant | -8/Scraptown Resources | -11 -10 -10 -8 -8 ----------- Run | Yrd Mat Sub Rec Scr Matter Collected 1029 | 220 95 401 175 138 Remotely 138 | . . . . 138 Salvage Created 858 | . 138 92 526 102 Parts 40 | . 10 8 18 4 Haulers Intercepted . | . . . . . Recyclers Shooed 1 | . 1 . . . Parts Field Recycled . | . . . . . Retrieved Matter . | . . . . . Parts Self-Destructed 6 | . . 4 . 2 Prevented . | . . . . . Kills | -11 -10 -10 -8 -8 ------- Run | Yrd Mat Sub Rec Scr Combat Hostiles Destroyed 12 | . 4 4 2 2 Guns 4 | . 2 . . 2 Cannons 1 | . . 1 . . AOE 7 | . 2 3 2 . Classes Destroyed 9 | . 3 2 2 2 Builder 2 | . 2 . . . Recycler 8 | . . . 8 . Turret 2 | . . 2 . . Watcher 1 | . 1 . . . Grunt 4 | . 4 . . . Sentry 2 | . . . 2 . Subdweller 4 | . . 4 . . Federalist 1 | . . . . 1 Mutant 1 | . . . . 1 Best Kill Streak 7 | . 7 2 4 2 Combat Bots Only 4 | . 4 2 2 2 Max Kills in Single Turn 3 | . 2 1 3 1 Gunslinging . | . . . . . Exploded 1 | . 1 1 1 . Melee . | . . . . . Uniques/NPCs Destroyed . | . . . . . Combat | -11 -10 -10 -8 -8 -------- Run | Yrd Mat Sub Rec Scr Hostile Shots Fired 101 | . 13 50 10 28 Missed 35 | . 6 16 3 10 Hits 66 | . 7 34 7 18 Projectile 66 | . 7 34 7 18 Damage Taken 1193 | . 96 566 209 322 Core 266 | . 25 115 63 63 Absorbed by Shields . | . . . . . Core Remaining (%) 100 | 100 . . . . Volleys Fired 49 | . 7 23 8 11 Largest 2 | . 2 2 2 2 Hottest 90 | . 70 90 70 50 Shots Fired 89 | . 14 44 9 22 Gun 43 | . 7 14 . 22 Cannon 6 | . . 6 . . Launcher 40 | . 7 24 9 . Special . | . . . . . Kinetic 35 | . . 6 7 22 Thermal . | . . . . . Explosive 33 | . 7 24 2 . Electromagnetic 21 | . 7 14 . . Robot Hit Streak 12 | . 7 9 12 8 Robot Miss Streak 4 | . 1 3 1 4 Penetration Max . | . . . . . Secondary Targets 1 | . . . . 1 Max Gunslinging Chain 1 | . . . . 1 Shots Hit Robots 60 | . 10 26 8 16 Core Hits 47 | . 14 14 13 6 Critical Kills . | . . . . . Critical Parts Destroyed . | . . . . . Critical Strikes . | . . . . . Melee Attacks . | . . . . . Impact . | . . . . . Slashing . | . . . . . Piercing . | . . . . . Sneak Attacks . | . . . . . Combat Hostiles . | . . . . . Follow-up Attacks . | . . . . . Damage Inflicted 2383 | . 511 871 722 279 Guns 479 | . 81 119 . 279 Cannons 139 | . . 139 . . Explosions 1765 | . 430 613 722 . Melee . | . . . . . Ramming . | . . . . . Kinetic 1088 | . . 139 670 279 Thermal . | . . . . . Explosive 1095 | . 430 613 52 . Electromagnetic 200 | . 81 119 . . Impact . | . . . . . Slashing . | . . . . . Piercing . | . . . . . Highest Corruption . | . . . . . Average Corruption . | . . . . . Corruption Purged . | . . . . . Corruption Blocked . | . . . . . Overload Shots . | . . . . . Overflow Damage 121 | . . . 121 . Projectiles . | . . . . . Explosions 121 | . . . 121 . Melee . | . . . . . Knockbacks 1 | . . 1 . . Impact . | . . . . . Kinetic 1 | . . 1 . . Secondary . | . . . . . Self-Inflicted Damage 159 | . 10 35 114 . Shots 10 | . 1 3 6 . Rammed . | . . . . . Targets Rammed . | . . . . . Kicked . | . . . . . Crushed . | . . . . . Highest Temperature 154 | . 69 . 43 154 Average Temperature 40 | . 31 . 17 62 Received Heat Transfer 403 | . 48 135 36 184 Siege Activations . | . . . . . Martial Activations . | . . . . . Shielding Activations . | . . . . . Robots Disrupted . | . . . . . Combat Hostiles . | . . . . . Robots Corrupted . | . . . . . Combat Hostiles . | . . . . . Parts Fried . | . . . . . Impact Corruptions . | . . . . . Robots Melted . | . . . . . Combat Hostiles . | . . . . . Parts Melted . | . . . . . Heat Transferred . | . . . . . Parts Sabotaged . | . . . . . Parts Stolen . | . . . . . Parts Stripped . | . . . . . Power Chain Reactions . | . . . . . Alert | -11 -10 -10 -8 -8 ------- Run | Yrd Mat Sub Rec Scr Maximum Alert Level . | . . . . . Low Security (%) 100 | 100 100 . 100 . Level 1 . | . . . . . Level 2 . | . . . . . Level 3 . | . . . . . Level 4 . | . . . . . Level 5 . | . . . . . High Security . | . . . . . Max Security . | . . . . . Peak Influence 145 | . 145 . 101 . Initial 45 | . . . 45 . Average 48 | . 81 . 42 . Influence Increases 457 | . 155 145 157 . Destroy 0b10 Robot/C 160 | . 80 40 40 . Destroy 0b10 Robot/NC 55 | . 15 . 40 . Destroy Leader 12 | . 12 . . . Successful Hack 14 | . . . 14 . Disable Machine 15 | . 15 . . . Destroy Structure 96 | . 33 . 63 . Lose Combat Pursuer 105 | . . 105 . . Influence Decreases 457 | . 60 145 252 . Entered New Map 97 | . . 47 50 . Time Decay 310 | . 60 78 172 . Lost Part 50 | . . 20 30 . Squads Dispatched . | . . . . . Investigation . | . . . . . Extermination . | . . . . . Reinforcement . | . . . . . Assault . | . . . . . Garrison . | . . . . . Intercept . | . . . . . Searches Triggered . | . . . . . Construction Impeded . | . . . . . Haulers Reinforced . | . . . . . Active Scanning Responses . | . . . . . Cargo Convoy Interrupts . | . . . . . Stealth | -11 -10 -10 -8 -8 --------- Run | Yrd Mat Sub Rec Scr Distress Signals 1 | . 1 . . . Communications Jammed . | . . . . . Distress Signals . | . . . . . Times Spotted 23 | . 5 10 2 6 Peak Tracking Total 3 | . 3 2 2 3 Tactical Retreats 1 | . . 1 . . Traps | -11 -10 -10 -8 -8 ------- Run | Yrd Mat Sub Rec Scr Traps Triggered . | . . . . . Indirectly . | . . . . . Trap Hack Attempts . | . . . . . Triggered . | . . . . . Disarmed . | . . . . . Reprogrammed . | . . . . . Reused . | . . . . . Traps Extracted . | . . . . . Installed . | . . . . . Triggered . | . . . . . Machines | -11 -10 -10 -8 -8 ---------- Run | Yrd Mat Sub Rec Scr Machines Disabled 5 | . 1 4 . . Max in Single Turn 3 | . 1 3 . . Machines Repaired . | . . . . . Machines Dismantled . | . . . . . Machines Sabotaged . | . . . . . Overloaded Fab Kills . | . . . . . Hacking | -11 -10 -10 -8 -8 --------- Run | Yrd Mat Sub Rec Scr Machines Accessed 8 | . . 1 5 2 Terminals 1 | . . . 1 . Fabricators . | . . . . . Repair Stations . | . . . . . Recycling Units 3 | . . . 3 . Scanalyzers . | . . . . . Garrison Access . | . . . . . Total Hacks 24 | . . 4 11 9 Successful 23 | . . 4 10 9 Failed 1 | . . . 1 . Catastrophic . | . . . . . Database Lockouts . | . . . . . Manual 6 | . . . 6 . Terminals 1 | . . . 1 . Fabricators . | . . . . . Repair Stations . | . . . . . Recycling Units 5 | . . . 5 . Scanalyzers . | . . . . . Garrison Access . | . . . . . Terminal Hacks 19 | . . 4 6 9 Record 10 | . . 4 5 1 Part Schematic 1 | . . . 1 . Robot Analysis 8 | . . . . 8 Fabricator Hacks . | . . . . . Repair Station Hacks . | . . . . . Recycling Unit Hacks . | . . . . . Scanalyzer . | . . . . . Garrison Access Hacks . | . . . . . Unauthorized Hacks 3 | . . . 3 . Terminals . | . . . . . Fabricators . | . . . . . Repair Stations . | . . . . . Recycling Units 3 | . . . 3 . Reject 3 | . . . 3 . Scanalyzers . | . . . . . Garrison Access . | . . . . . Data Cores Recovered . | . . . . . Used . | . . . . . Hacking Detections 2 | . . . 2 . Full Trace Events . | . . . . . Feedback Events . | . . . . . Feedback Blocked . | . . . . . Robot Schematics Acquired . | . . . . . Robots Built . | . . . . . Authchips . | . . . . . Time . | . . . . . Total Robot Build Rating . | . . . . . Part Schematics Acquired 1 | . . . 1 . Parts Built . | . . . . . Authchips . | . . . . . Time . | . . . . . Total Part Build Rating . | . . . . . Parts Repaired . | . . . . . Time . | . . . . . Parts Recycled . | . . . . . Recycled Matter . | . . . . . Retrieved Matter . | . . . . . Retrieved Components . | . . . . . Parts Scanalyzed . | . . . . . Part Schematics Acquired . | . . . . . Parts Damaged . | . . . . . Bothacking | -11 -10 -10 -8 -8 ------------ Run | Yrd Mat Sub Rec Scr Used RIF Installer . | . . . . . Robots Hacked . | . . . . . Non-combat . | . . . . . Combat . | . . . . . Robot Hacks Applied . | . . . . . Relay Couplers Released . | . . . . . Fabnet Peak Effective % . | . . . . . Robots Rewired . | . . . . . Allies Hacked . | . . . . . Hacks Repelled . | . . . . . Allies | -11 -10 -10 -8 -8 -------- Run | Yrd Mat Sub Rec Scr Total Allies . | . . . . . Largest Group . | . . . . . Highest-Rated Group . | . . . . . Highest-Rated Ally . | . . . . . Total Orders . | . . . . . Ally Attacks . | . . . . . Total Damage . | . . . . . Kills . | . . . . . Allies Corrupted . | . . . . . Allies Melted 1 | . . . . 1 Intel | -11 -10 -10 -8 -8 ------- Run | Yrd Mat Sub Rec Scr Active Infowar (turns) 959 | . 50 655 254 . Optics 586 | . . 332 254 . ECM 373 | . 50 323 . . Robot Analysis Total 8 | . . . . 8 Derelict Logs Recovered 2 | . . . . 2 Drone Launches . | . . . . . Drone Recoveries . | . . . . . Exploration | -11 -10 -10 -8 -8 ------------- Run | Yrd Mat Sub Rec Scr Turns Passed 3816 | 48 140 1125 423 2080 Spaces Moved 2672 | 42 120 979 237 1294 Core 19 | 1 . . 18 . Treads 1452 | . . . 158 1294 Legs . | . . . . . Wheels 1201 | 41 120 979 61 . Hover . | . . . . . Flight . | . . . . . Fastest Speed 50 | 50 90 90 100 152 Average Speed 133 | 88 90 102 167 156 Slowest Speed 300 | 90 90 115 300 160 Overloaded Moves . | . . . . . Propulsion Burnouts . | . . . . . Robots Hopped . | . . . . . Potential Cave-ins 1 | . . . 1 . Cave-ins Triggered . | . . . . . Exploration Rate (%) 39 | 3 24 51 40 80 Regions Visited 4 Branch Regions 3 Pre-discovered Areas . | . . . . . Known Exits Taken . | . . . . . Unknown Exits Taken 4 | 1 1 1 1 . Scrap Searched 12 | . . 4 . 8 Spaces Dug . | . . . . . Terrain Destroyed 248 | . 41 103 104 . Melee . | . . . . . Projectile . | . . . . . AOE 248 | . 41 103 104 . Terrain Rammed . | . . . . . Walls Destroyed . | . . . . . Machines Disabled . | . . . . . Actions | -11 -10 -10 -8 -8 --------- Run | Yrd Mat Sub Rec Scr Total 2819 | 49 136 1048 253 1333 Wait 38 | . 4 29 3 2 Move 2668 | 41 119 978 236 1294 Hop . | . . . . . Pick Up 23 | 2 4 4 1 12 Fast Attach 15 | 6 1 4 2 2 Attach 6 | . . 4 2 . Detach . | . . . . . Swap 8 | . 1 5 . 2 Drop 12 | . . 1 1 10 Fire 49 | . 7 23 8 11 Melee . | . . . . . Ram . | . . . . . Kick . | . . . . . Crush . | . . . . . Escape Stasis . | . . . . . Rewire . | . . . . . Trap . | . . . . . Miscellaneous . | . . . . . Route ------- -11/Scrapyard -10/Materials -10/Subcaves (discovered 2 exits: [*Mat] / *Rec) -8/Recycling -8/Scraptown (discovered 1 exit: [*Fac]) History --------- Turn | Location | Event 9 | -11/Scrapyard | Discovered new exit (range 16) 49 | -11/Scrapyard | Entered Materials 181 | -10/Materials | Discovered new exit (range 5) 189 | -10/Materials | Entered Subcaves 248 | -10/Subcaves | Disturbed a concealed Subdweller 315 | -10/Subcaves | Build established: Mutant 496 | -10/Subcaves | Ambushed by Subdwellers from Twisted Machinery 558 | -10/Subcaves | Lost 5 parts (2p1n1u1w) 576 | -10/Subcaves | Core integrity fell below 50% 599 | -10/Subcaves | A swath of the cavern ceiling suddenly collapsed 632 | -10/Subcaves | Discovered new exit (range 17) 705 | -10/Subcaves | Visited Clippyterm 708 | -10/Subcaves | Learned Factory emergency access door positions 1231 | -10/Subcaves | Discovered new exit (range 12) 1314 | -10/Subcaves | Entered Recycling 1411 | -8/Recycling | Lost 3 parts (1n2w) 1430 | -8/Recycling | Core integrity fell below 20% 1612 | -8/Recycling | Scanned before Scraplab entrance 1636 | -8/Recycling | Entered Scraplab 1655 | -8/Recycling | Discovered new exit (range 3) 1737 | -8/Recycling | Entered Scraptown 1769 | -8/Scraptown | Heard Great Nut preacher, LISTEN AND RECITE! 1899 | -8/Scraptown | Visited UFD Registry 1899 | -8/Scraptown | Registered with UFD as "Shorthead" 2330 | -8/Scraptown | Scanned Subdweller tech in exchange for log data 2335 | -8/Scraptown | Learned Research terminal intel 2336 | -8/Scraptown | Learned location of 1 exit from Factory 2352 | -8/Scraptown | Discovered new exit (range 11) 2581 | -8/Scraptown | Visited Bundlers 2737 | -8/Scraptown | Visited Comm Corps 2746 | -8/Scraptown | Visited The Evicted 2900 | -8/Scraptown | Visited Curators Association 2995 | -8/Scraptown | Visited Chapter 10 3256 | -8/Scraptown | Visited Analyses Database 3297 | -8/Scraptown | Visited DA-N13 Charitable Foundation 3311 | -8/Scraptown | Found DCF Scrap (28 items) 3383 | -8/Scraptown | Visited Scrap Suit Storage 3440 | -8/Scraptown | Visited Infowarlord's Domain 3499 | -8/Scraptown | Visited Science Guys 3615 | -8/Scraptown | Met Optimus 3615 | -8/Scraptown | Accepted into 0bPrime 3761 | -8/Scraptown | Civil war broke out across Scraptown 3817 | -8/Scraptown | Destroyed by 86-UBQ(j) with Overtuned Pulse Rifle Last Messages --------------- this." 03763_ 1D-2PM(p) destroyed. 03765_ Optimus: "No holds barred, if they're hostile, they are an enemy of the people and we must shoot to kill. Collateral damage is to be expected!" Optimus: "Someone shut down Triborg? Who would do that? How?!" 03771_ RD-BNK: "RECYCLER ON THE LOSE! LET'S GO!" 03774_ 7Y-QBE(z): "And I thought Zion was bad!" 03781_ Acquired 8 matter. 03785_ 62-HTD(g) destroyed. 03786_ Acquired 8 matter. 03791_ Comm Apparatus damaged. 03797_ Acquired 8 matter. 03804_ 9N-ZKT(M) destroyed. 03804_ Switching to secondary target: 86-UBQ(j). 03805_ Acquired 8 matter. 03811_ 86-UBQ(j) heat damages Ovr. Titanium Leg. 03813_ Acquired 8 matter. 03816_ Minigun destroyed. [Achievement: This Is Interesting...] Map ----- +----------------------------------------------------+ | #?#"" ""#??????## ###" "#" "#?? | | ###""" """######## ##"""""" ""#"" """"""#?? | | #?? | | #?? | | #?? | | ###### ########### ##########"" """"#####?? | | #????# #?????????## ##????????#" "#?????? | | #????" "?????##???# #########?#" ""#?????? | | #??? " " ???? ??# """"""""#?#" """#?????? | | ""#??" "??### ### " ""#?#" """#?????? | | "#? " " ?#"" """ "#?#"""""""#?????? | | "#?"""" """"?#" """ " ""#??######???????? | | "###### ######" " """"""""#???????????????? | | "#?"""" """"?#" ##"""####?????########### | | ""#?? " " ??#" "" " ######???####?#"""""""""" | | ##???" "??#" " #""""????""""##""" """""" | | ????? " " ???#"""""" #" ???? "##"""" " "" | | ##??????" "????####### #" "#????# "##"" "" | | ????????# #??????????# #" "#????# "##" "" " | | ######### ############ #" "#????#" "##" " " | | #" #????#" "##" " " | | = #" "###### "##""" " | | #####################;[= # "##" " " " | | ????????????????????#!%!%# % ##"" "" | | ######################!* #;;;###### ##### ######## | | """##"" "" """" " ; @ =%! !!! | | "##" "%%" # !! == | | "## !/! # j | | = "##""! ! % | | [ "##"% [ j# !! | | "##""[] b # [%################# | | [ "#### ## # =#???????????????# | | "## # # #???????????????# | | "##! !*# [[ # #???????????????# | | ""##![ [# = ! ! # #???????????????# | | ####=/[=#"%" "%" # #???????????????# | | ####!![]#""" """ # #???????????????# | | ""################# #???????????????# | | "#???????????????# #???????????????# | | "#???????????????# #???????????????# | | "#???????????????# #???????????????# | | "#???????????????# #???????????????# | | ""#???????????????# ???????????????# | | """#???????????????# #???????????????# | | """#???????????????# #???????????????# | | """????????????????# ????????????????# | | ##?????????????????# ??############### | | ####????????????????? ?? | | X""#?????????????????????? | | "#?????????????????????? | +----------------------------------------------------+ Best States ------------- Heat Dissipation 25 Energy Generation 14 Energy Capacity 250 Matter Stores 300 Matter Capacity 300 Sight Range 21 Terrain Scan Density 10 ECM Strength 1 Evasion (%) 42 Recoil Reduction 2 Authchip Count 1 Item Schematics ----------------- Minigun | -8/Recycling | Hacked Robot Schematics ------------------ None Fabricated ------------ Nothing Repaired ---------- Nothing Alien Tech Used ----------------- None Achievements -------------- Armchair Analyst This Is Interesting... Challenges ------------ None Game ------ Seed DataPowerArchive Manual? 0 Play Time 00:35:59 Cumulative 17.1 hours Start 2025.05.15 @ 23:06:21 End 2025.05.15 @ 23:44:53 Sessions 1 Manual Loads 0 Difficulty Rogue Special Mode None Game No. 35 Rogue 35 Adventurer 0 Explorer 0 Win Type - Total 0 Types 0/0/0/0/0/0/0/0/0/0 Lore% 27 Gallery% 17 Achievement% 19 Wizard Run 0 Options --------- Layout 1 ASCII 0 Keyboard 0 Movement Mouse Keybinds 0 Fullscreen 1 Font 32/SmallcapsGlow Map View 77x35 Zoom Use 0% Tactical HUD 1 Map Filters NONE Filters NONE Steam 1 RUN: a9438426-dc2e-46fa-9f7f-f5f2c15151d1